fUSD/lending_fUSD_20241215
["ID","MTS","AMOUNT","RATE_DAILY","PERIOD"]
[345447060,1734263444231,-151.0,0.00019894,2]
[345447061,1734263444240,-500.0,0.00019894,3]
[345447063,1734263444250,-500.0,0.00019894,3]
[345447065,1734263444259,-500.0,0.00019894,3]
[345447067,1734263444268,-500.0,0.00019894,3]
[345447069,1734263444277,-500.0,0.00019894,3]
[345447071,1734263444287,-500.0,0.00019894,3]
[345447074,1734263444296,-962.06,0.00019894,3]
[345447076,1734263444306,-605.19,0.00019894,3]
[345447078,1734263444315,-500.0,0.00019894,3]
[345447080,1734263444325,-500.0,0.00019894,3]
[345447082,1734263444334,-500.0,0.00019894,3]
[345447084,1734263444344,-274.89644646,0.00019894,3]
[345447086,1734263444354,-500.0,0.00019894,3]
[345447088,1734263444363,-500.0,0.00019894,3]
[345447090,1734263444372,-500.0,0.00019894,3]
[345447091,1734263444382,-865.82,0.00019894,3]
[345447093,1734263444392,-500.0,0.00019894,3]
[345447095,1734263444401,-500.0,0.00019894,3]
[345447097,1734263444411,-834.75,0.00019894,3]
[345447100,1734263444421,-500.0,0.00019894,3]
[345447102,1734263444430,-500.0,0.00019894,3]
[345447103,1734263444439,-500.0,0.00019894,3]
[345447105,1734263444449,-500.0,0.00019894,3]
[345447107,1734263444458,-562.57,0.00019894,3]
[345447109,1734263444467,-500.0,0.00019894,3]
[345447111,1734263444477,-542.27,0.00019894,3]
[345447113,1734263444486,-500.0,0.00019894,3]
[345447115,1734263444495,-500.0,0.00019894,3]
[345447117,1734263444506,-500.0,0.00019894,3]
[345447119,1734263444515,-500.0,0.00019894,3]
[345447121,1734263444524,-2757.68,0.00019894,30]
[345447123,1734263444534,-2947.03,0.00019894,3]
[345447125,1734263444543,-500.0,0.00019894,3]
[345447127,1734263444553,-293.97543013,0.00019894,3]
[345447129,1734263444562,-500.0,0.00019894,3]
[345447131,1734263444572,-922.44,0.00019894,3]
[345447132,1734263444581,-500.0,0.00019894,3]
[345447133,1734263444590,-500.0,0.00019894,3]
[345447134,1734263444599,-642.71,0.00019894,3]
[345447135,1734263444609,-593.01793826,0.00019894,3]
[345447136,1734263444618,-740.05,0.00019894,3]
[345447137,1734263444627,-950.1,0.00019894,3]
[345447138,1734263444637,-500.0,0.00019894,3]
[345447139,1734263444647,-1085.19,0.00019894,3]
[345447141,1734263444656,-708.49,0.00019894,3]
[345447143,1734263444666,-830.35,0.00019894,3]
[345447145,1734263444676,-1109.49,0.00019894,3]
[345447147,1734263444685,-500.0,0.00019894,3]
[345447149,1734263444695,-1222.92,0.00019894,3]
[345447151,1734263444704,-1671.42,0.00019894,3]
[345447153,1734263444714,-500.0,0.00019894,3]
[345447155,1734263444724,-867.84,0.00019894,3]
[345447157,1734263444733,-500.0,0.00019894,3]
[345447159,1734263444743,-500.0,0.00019894,3]
[345447161,1734263444753,-500.0,0.00019894,3]
[345447163,1734263444762,-500.0,0.00019894,3]
[345447165,1734263444771,-500.0,0.00019894,3]
[345447167,1734263444781,-500.0,0.00019894,3]
[345447169,1734263444790,-748.24,0.00019894,3]
[345447171,1734263444800,-500.0,0.00019894,3]
[345447173,1734263444809,-500.0,0.00019894,3]
[345447175,1734263444818,-617.64,0.00019894,3]
[345447177,1734263444828,-1597.68,0.00019894,3]
[345447179,1734263444838,-500.0,0.00019894,3]
[345447181,1734263444847,-4435.54,0.00019894,3]
[345447183,1734263444857,-500.0,0.00019894,3]
[345447185,1734263444867,-507.98,0.00019894,3]
[345447187,1734263444876,-500.0,0.00019894,3]
[345447189,1734263444887,-500.0,0.00019894,3]
[345447191,1734263444896,-500.0,0.00019894,3]
[345447193,1734263444905,-513.21,0.00019894,3]
[345447195,1734263444914,-500.0,0.00019894,3]
[345447197,1734263444924,-500.0,0.00019894,3]
[345447199,1734263444934,-293.51935574,0.00019894,3]
[345447201,1734263444944,-500.0,0.00019894,3]
[345447203,1734263444953,-500.0,0.00019894,3]
[345447205,1734263444973,-500.0,0.00019894,3]
[345447207,1734263444984,-544.8,0.00019894,3]
[345447209,1734263444994,-500.0,0.00019894,3]
[345447211,1734263445004,-500.0,0.00019894,3]
[345447213,1734263445014,-1000.0,0.00019894,3]
[345447215,1734263445024,-500.0,0.00019894,3]
[345447217,1734263445034,-500.0,0.00019894,3]
[345447219,1734263445043,-630.84,0.00019894,3]
[345447221,1734263445053,-750.03,0.00019894,3]
[345447223,1734263445063,-500.0,0.00019894,3]
[345447225,1734263445072,-500.0,0.00019894,3]
[345447227,1734263445082,-2140.27,0.00019894,3]
[345447229,1734263445092,-500.0,0.00019894,3]
[345447231,1734263445102,-500.0,0.00019894,3]
[345447233,1734263445111,-636.00922859,0.00019894,3]
[345447235,1734263445121,-858.61,0.00019894,3]
[345447237,1734263445130,-500.0,0.00019894,3]
[345447239,1734263445140,-500.0,0.00019894,3]
[345447241,1734263445149,-500.0,0.00019895,3]
[345447243,1734263445159,-151.0,0.00019895,2]
[345447244,1734263445168,-500.0,0.00019895,3]
[345447246,1734263445178,-500.0,0.00019895,3]
[345447248,1734263445187,-500.0,0.00019895,3]
[345447250,1734263445196,-264.29855471,0.00019895,3]
[345447273,1734263445408,-235.70144529,0.00019895,3]
[345447275,1734263445418,-500.0,0.00019895,3]
[345447277,1734263445428,-962.06,0.00019895,3]
[345447278,1734263445438,-500.0,0.00019895,3]
[345447279,1734263445447,-500.0,0.00019895,3]
[345447280,1734263445457,-500.0,0.00019895,3]
[345447281,1734263445467,-500.0,0.00019895,3]
[345447282,1734263445476,-500.0,0.00019895,3]
[345447283,1734263445486,-500.0,0.00019895,3]
[345447284,1734263445496,-500.0,0.00019895,3]
[345447285,1734263445506,-865.82,0.00019895,3]
[345447286,1734263445519,-339.08,0.00019895,3]
[345447287,1734263445529,-269.03,0.00019895,3]
[345447288,1734263445539,-834.75,0.00019895,3]
[345447289,1734263445549,-500.0,0.00019895,3]
[345447290,1734263445559,-500.0,0.00019895,3]
[345447291,1734263445569,-208.75,0.00019895,3]
[345447292,1734263445578,-500.0,0.00019895,3]
[345447293,1734263445588,-562.57,0.00019895,3]
[345447294,1734263445599,-500.0,0.00019895,3]
[345447295,1734263445609,-542.27,0.00019895,3]
[345447296,1734263445618,-500.0,0.00019895,3]
[345447297,1734263445628,-500.0,0.00019895,3]
[345447298,1734263445637,-500.0,0.00019895,3]
[345447299,1734263445647,-500.0,0.00019895,3]
[345447300,1734263445656,-2757.68,0.00019895,30]
[345447301,1734263445666,-2947.03,0.00019895,3]
[345447302,1734263445676,-151.0,0.00019895,2]
[345447304,1734263445685,-500.0,0.00019895,3]
[345447306,1734263445694,-240.153192,0.00019895,2]
[345447308,1734263445704,-500.0,0.00019895,3]
[345447310,1734263445712,-922.44,0.00019895,3]
[345447312,1734263445721,-500.0,0.00019895,3]
[345447314,1734263445731,-500.0,0.00019895,3]
[345447316,1734263445740,-500.0,0.00019895,3]
[345447318,1734263445749,-500.0,0.00019895,3]
[345447320,1734263445759,-705.82,0.00019895,3]
[345447322,1734263445771,-642.71,0.00019895,3]
[345447324,1734263445780,-500.0,0.00019895,3]
[345447326,1734263445789,-740.05,0.00019895,3]
[345447328,1734263445798,-171.948657,0.00019895,3]
[345447330,1734263445807,-359.444373,0.00019895,3]
[345447331,1734263445817,-950.1,0.00019895,3]
[345447349,1734263445976,-542.7,0.00019895,3]
[345447351,1734263445987,-500.0,0.00019895,3]
[345447353,1734263445996,-500.0,0.00019895,3]
[345447355,1734263446008,-1085.19,0.00019895,3]
[345447357,1734263446019,-6945.34,0.00019895,3]
[345447359,1734263446030,-2043.78,0.00019895,3]
[345447361,1734263446040,-708.49,0.00019895,3]
[345447363,1734263446050,-500.0,0.00019895,3]
[345447365,1734263446059,-830.35,0.00019895,3]
[345447367,1734263446069,-1109.49,0.00019895,3]
[345447369,1734263446079,-581.1,0.00019895,3]
[345447371,1734263446088,-500.0,0.00019895,3]
[345447373,1734263446098,-1222.92,0.00019895,3]
[345447375,1734263446108,-500.0,0.00019895,3]
[345447377,1734263446118,-1671.42,0.00019895,3]
[345447379,1734263446128,-500.0,0.00019895,3]
[345447381,1734263446139,-670.58,0.00019895,3]
[345447383,1734263446150,-500.0,0.00019895,3]
[345447385,1734263446160,-500.0,0.00019895,3]
[345447387,1734263446170,-867.84,0.00019895,3]
[345447390,1734263446180,-525.43,0.00019895,3]
[345447392,1734263446191,-151.0,0.00019895,2]
[345447394,1734263446200,-500.0,0.00019895,3]
[345447396,1734263446210,-151.0,0.00019895,2]
[345447398,1734263446220,-590.31,0.00019895,3]
[345447400,1734263446230,-500.0,0.00019895,3]
[345447403,1734263446239,-546.48,0.00019895,3]
[345447406,1734263446249,-500.0,0.00019895,3]
[345447408,1734263446259,-500.0,0.00019895,3]
[345447411,1734263446268,-546.64,0.00019895,3]
[345447413,1734263446278,-500.0,0.00019895,3]
[345447415,1734263446287,-1597.68,0.00019895,3]
[345447417,1734263446297,-1027.21,0.00019895,3]
[345447419,1734263446306,-4435.54,0.00019895,3]
[345447421,1734263446316,-500.0,0.00019895,3]
[345447423,1734263446325,-500.0,0.00019895,3]
[345447425,1734263446335,-1085.21,0.00019895,3]
[345447427,1734263446344,-706.39,0.00019895,3]
[345447429,1734263446354,-513.21,0.00019895,3]
[345447431,1734263446363,-500.0,0.00019895,3]
[345447433,1734263446373,-885.56,0.00019895,3]
[345447435,1734263446382,-260.98,0.00019895,3]
[345447437,1734263446391,-500.0,0.00019895,3]
[345447439,1734263446401,-750.63,0.00019895,3]
[345447441,1734263446411,-500.0,0.00019895,3]
[345447442,1734263446421,-500.0,0.00019895,3]
[345447443,1734263446430,-629.77,0.00019895,3]
[345447444,1734263446439,-1000.0,0.00019895,3]
[345447445,1734263446448,-500.0,0.00019895,3]
[345447446,1734263446457,-226.120635,0.00019895,2]
[345447447,1734263446466,-739.78,0.00019895,3]
[345447448,1734263446475,-500.0,0.00019895,3]
[345447450,1734263446485,-226.120635,0.00019895,2]
[345447451,1734263446494,-2135.44,0.00019895,3]
[345447452,1734263446503,-750.03,0.00019895,3]
[345447453,1734263446515,-500.0,0.00019895,3]
[345447454,1734263446524,-500.0,0.00019895,3]
[345447455,1734263446534,-500.0,0.00019895,3]
[345447456,1734263446543,-1894.47,0.00019895,3]
[345447457,1734263446552,-500.0,0.00019895,3]
[345447458,1734263446561,-7561.41112328,0.00019896,2]
[345447460,1734263446575,-17118.37907672,0.00019896,2]
[345447462,1734263446585,-500.0,0.00019896,3]
[345447464,1734263446594,-500.0,0.00019896,3]
[345447466,1734263446604,-500.0,0.00019896,3]
[345447468,1734263446614,-500.0,0.00019896,3]
[345447470,1734263446624,-500.0,0.00019896,3]
[345447472,1734263446634,-500.0,0.00019896,3]
[345447474,1734263446644,-500.0,0.00019896,3]
[345447476,1734263446654,-500.0,0.00019896,3]
[345447478,1734263446664,-500.0,0.00019896,3]
[345447480,1734263446673,-357.92544109,0.00019896,3]
[345447483,1734263446685,-500.0,0.00019896,3]
[345447485,1734263446694,-500.0,0.00019896,3]
[345447487,1734263446704,-500.0,0.00019896,3]
[345447489,1734263446713,-500.0,0.00019896,3]
[345447491,1734263446723,-500.0,0.00019896,3]
[345447493,1734263446732,-500.0,0.00019896,3]
[345447495,1734263446742,-535.03,0.00019896,3]
[345447497,1734263446752,-500.0,0.00019896,3]
[345447499,1734263446761,-542.36,0.00019896,3]
[345447501,1734263446770,-500.0,0.00019896,3]
[345447503,1734263446779,-500.0,0.00019896,3]
[345447505,1734263446788,-500.0,0.00019896,3]
[345447507,1734263446797,-500.0,0.00019896,3]
[345447509,1734263446806,-500.0,0.00019896,3]
[345447511,1734263446815,-500.0,0.00019896,3]
[345447513,1734263446824,-500.0,0.00019896,3]
[345447515,1734263446834,-500.0,0.00019896,3]
[345447517,1734263446843,-500.0,0.00019896,3]
[345447519,1734263446852,-500.0,0.00019896,3]
[345447521,1734263446861,-438.28902505,0.00019896,3]
[345447523,1734263446870,-500.0,0.00019896,3]
[345447524,1734263446879,-500.0,0.00019896,3]
[345447526,1734263446889,-500.0,0.00019896,3]
[345447528,1734263446898,-500.0,0.00019896,3]
[345447530,1734263446907,-500.0,0.00019896,3]
[345447532,1734263446916,-200.14938265,0.00019896,2]
[345447534,1734263446926,-151.0,0.00019897,2]
[345447536,1734263446935,-153.64504024,0.00019899,2]
[345447539,1734263446948,-500.0,0.00019899,3]
[345447541,1734263446957,-500.0,0.00019899,3]
[345447543,1734263446967,-500.0,0.00019899,3]
[345447545,1734263446976,-500.0,0.00019899,3]
[345447547,1734263446986,-500.0,0.00019899,3]
[345447549,1734263446995,-322.68,0.00019899,3]
[345447551,1734263447004,-962.06,0.00019899,3]
[345447553,1734263447013,-161.48977223,0.00019899,3]
[345447555,1734263447023,-500.0,0.00019899,3]
[345447557,1734263447032,-500.0,0.00019899,3]
[345447559,1734263447042,-500.0,0.00019899,3]
[345447561,1734263447051,-500.0,0.00019899,3]
[345447563,1734263447060,-500.0,0.00019899,3]
[345447565,1734263447070,-500.0,0.00019899,3]
[345447567,1734263447079,-865.82,0.00019899,3]
[345447569,1734263447089,-634.96986103,0.00019899,3]
[345447571,1734263447101,-199.78013897,0.00019899,3]
[345447573,1734263447110,-500.0,0.00019899,3]
[345447574,1734263447119,-500.0,0.00019899,3]
[345447575,1734263447129,-500.0,0.00019899,3]
[345447576,1734263447138,-562.57,0.00019899,3]
[345447577,1734263447148,-500.0,0.00019899,3]
[345447578,1734263447157,-542.27,0.00019899,3]
[345447579,1734263447167,-500.0,0.00019899,3]
[345447580,1734263447177,-500.0,0.00019899,3]
[345447581,1734263447186,-500.0,0.00019899,3]
[345447582,1734263447196,-500.0,0.00019899,3]
[345447583,1734263447205,-2757.68,0.00019899,30]
[345447584,1734263447216,-2947.03,0.00019899,3]
[345447585,1734263447226,-500.0,0.00019899,3]
[345447586,1734263447235,-500.0,0.00019899,3]
[345447588,1734263447244,-922.44,0.00019899,3]
[345447590,1734263447253,-500.0,0.00019899,3]
[345447592,1734263447262,-500.0,0.00019899,3]
[345447594,1734263447271,-642.71,0.00019899,3]
[345447596,1734263447280,-740.05,0.00019899,3]
[345447598,1734263447289,-950.1,0.00019899,3]
[345447600,1734263447299,-294.41494475,0.00019899,3]
[345447602,1734263447308,-1085.19,0.00019899,3]
[345447604,1734263447317,-708.49,0.00019899,3]
[345447606,1734263447326,-830.35,0.00019899,3]
[345447608,1734263447335,-1109.49,0.00019899,3]
[345447609,1734263447345,-500.0,0.00019899,3]
[345447611,1734263447355,-1222.92,0.00019899,3]
[345447613,1734263447364,-1671.42,0.00019899,3]
[345447615,1734263447375,-500.0,0.00019899,3]
[345447616,1734263447385,-867.84,0.00019899,3]
[345447617,1734263447394,-500.0,0.00019899,3]
[345447618,1734263447404,-151.0,0.00019899,2]
[345447619,1734263447413,-502.18598695,0.00019899,3]
[345447620,1734263447423,-175.960504,0.00019899,2]
[345447621,1734263447433,-500.0,0.00019899,3]
[345447622,1734263447443,-500.0,0.00019899,3]
[345447623,1734263447452,-500.0,0.00019899,3]
[345447624,1734263447462,-500.0,0.00019899,3]
[345447625,1734263447471,-748.24,0.00019899,3]
[345447626,1734263447480,-500.0,0.00019899,3]
[345447627,1734263447490,-500.0,0.00019899,3]
[345447629,1734263447499,-617.64,0.00019899,3]
[345447631,1734263447508,-1597.68,0.00019899,3]
[345447633,1734263447520,-500.0,0.00019899,3]
[345447635,1734263447530,-500.0,0.00019899,3]
[345447637,1734263447539,-4435.54,0.00019899,3]
[345447639,1734263447549,-500.0,0.00019899,3]
[345447641,1734263447557,-507.98,0.00019899,3]
[345447643,1734263447567,-500.0,0.00019899,3]
[345447645,1734263447576,-500.0,0.00019899,3]
[345447647,1734263447586,-642.34935667,0.00019899,3]
[345447649,1734263447595,-513.21,0.00019899,3]
[345447651,1734263447605,-500.0,0.00019899,3]
[345447653,1734263447615,-500.0,0.00019899,3]
[345447655,1734263447626,-500.0,0.00019899,3]
[345447657,1734263447636,-544.8,0.00019899,3]
[345447659,1734263447645,-183.01,0.00019899,3]
[345447661,1734263447654,-500.0,0.00019899,3]
[345447663,1734263447664,-1130.77,0.00019899,3]
[345447665,1734263447674,-500.0,0.00019899,3]
[345447667,1734263447683,-226.120635,0.00019899,2]
[345447669,1734263447692,-500.0,0.00019899,3]
[345447672,1734263447702,-550.67,0.00019899,3]
[345447674,1734263447711,-226.120635,0.00019899,2]
[345447676,1734263447721,-630.84,0.00019899,3]
[345447678,1734263447731,-750.03,0.00019899,3]
[345447680,1734263447740,-500.0,0.00019899,3]
[345447682,1734263447749,-500.0,0.00019899,3]
[345447684,1734263447758,-2140.27,0.00019899,3]
[345447685,1734263447767,-500.0,0.00019899,3]
[345447687,1734263447776,-500.0,0.00019899,3]
[345447690,1734263447786,-858.61,0.00019899,3]
[345447692,1734263447795,-500.0,0.00019899,3]
[345447694,1734263447804,-500.0,0.00019899,3]
[345447696,1734263447813,-469.0,0.000199,7]
[345447698,1734263447823,-151.0,0.000199,2]
[345447700,1734263447831,-151.0,0.000199,2]
[345447702,1734263447841,-900.0,0.000199,7]
[345447704,1734263447850,-150.0,0.000199,2]
[345447706,1734263447858,-66261.70475003,0.000199,2]
[345447708,1734263447867,-301.25147534,0.000199,3]
[345447710,1734263447876,-1683.17250984,0.000199,2]
[345447712,1734263447885,-2259.67065417,0.000199,2]
[345447713,1734263447895,-200.30745684,0.000199,2]
[345447715,1734263447904,-150.0,0.00019912,2]
[345447717,1734263447914,-1500.0,0.00019925,2]
[345447719,1734263447923,-1189.501,0.00019927,2]
[345447721,1734263447931,-150.0,0.00019934,2]
[345447724,1734263447941,-150.0,0.00019951,2]
[345447726,1734263447950,-150.0,0.00019969,2]
[345447728,1734263447960,-23134.0,0.00019973,2]
[345447730,1734263447969,-151.14856962,0.00019973,2]
[345447732,1734263447978,-151.0,0.00019973,2]
[345447733,1734263447987,-150.0,0.00019978,2]
[345447736,1734263447998,-1316.48,0.0001999,3]
[345447737,1734263448008,-200.0,0.0001999,2]
[345447739,1734263448017,-500.0,0.00019993,3]
[345447742,1734263448027,-500.0,0.00019993,3]
[345447744,1734263448036,-500.0,0.00019993,3]
[345447745,1734263448045,-500.0,0.00019993,3]
[345447747,1734263448055,-612.19804571,0.00019993,3]
[345447749,1734263448064,-535.67,0.00019993,3]
[345447751,1734263448074,-500.0,0.00019993,3]
[345447754,1734263448084,-214.619854,0.00019993,2]
[345447756,1734263448094,-451.75,0.00019993,3]
[345447757,1734263448104,-500.0,0.00019993,3]
[345447759,1734263448113,-500.0,0.00019993,3]
[345447762,1734263448123,-500.0,0.00019993,3]
[345447763,1734263448133,-153.9,0.00019993,3]
[345447765,1734263448143,-500.0,0.00019993,3]
[345447767,1734263448152,-500.0,0.00019993,3]
[345447769,1734263448161,-500.0,0.00019993,3]
[345447771,1734263448170,-500.0,0.00019993,3]
[345447773,1734263448180,-233.9,0.00019993,3]
[345447775,1734263448189,-500.0,0.00019993,3]
[345447778,1734263448199,-319.55,0.00019993,3]
[345447779,1734263448208,-514.54,0.00019993,3]
[345447782,1734263448230,-500.0,0.00019993,3]
[345447784,1734263448239,-500.0,0.00019993,3]
[345447786,1734263448249,-500.0,0.00019993,3]
[345447788,1734263448259,-500.0,0.00019993,3]
[345447790,1734263448271,-500.0,0.00019993,3]
[345447792,1734263448280,-500.0,0.00019993,3]
[345447794,1734263448290,-500.0,0.00019994,3]
[345447796,1734263448300,-500.0,0.00019994,3]
[345447798,1734263448313,-705.82,0.00019994,3]
[345447799,1734263448323,-500.0,0.00019994,3]
[345447800,1734263448332,-171.948657,0.00019994,3]
[345447801,1734263448343,-359.444373,0.00019994,3]
[345447802,1734263448353,-542.7,0.00019994,3]
[345447805,1734263448404,-500.0,0.00019994,3]
[345447807,1734263448415,-6945.34,0.00019994,3]
[345447809,1734263448424,-2043.78,0.00019994,3]
[345447811,1734263448433,-500.0,0.00019994,3]
[345447813,1734263448444,-581.1,0.00019994,3]
[345447815,1734263448453,-670.58,0.00019994,3]
[345447817,1734263448463,-500.0,0.00019994,3]
[345447819,1734263448473,-196.59,0.00019994,3]
[345447821,1734263448482,-590.31,0.00019994,3]
[345447823,1734263448493,-546.48,0.00019994,3]
[345447825,1734263448503,-546.64,0.00019994,3]
[345447827,1734263448514,-1015.48045311,0.00019994,3]
[345447829,1734263448529,-11.72954689,0.00019994,3]
[345447831,1734263448539,-1085.21,0.00019994,3]
[345447833,1734263448549,-706.39,0.00019994,3]
[345447835,1734263448559,-885.56,0.00019994,3]
[345447837,1734263448568,-750.63,0.00019994,3]
[345447839,1734263448578,-500.0,0.00019994,3]
[345447841,1734263448587,-629.77,0.00019994,3]
[345447843,1734263448597,-226.120635,0.00019994,2]
[345447845,1734263448606,-739.78,0.00019994,3]
[345447847,1734263448616,-226.120635,0.00019994,2]
[345447849,1734263448625,-2135.44,0.00019994,3]
[345447851,1734263448634,-500.0,0.00019994,3]
[345447853,1734263448643,-1894.47,0.00019994,3]
[345447855,1734263448653,-500.0,0.00019995,3]
[345447857,1734263448662,-500.0,0.00019995,3]
[345447859,1734263448671,-962.06,0.00019995,3]
[345447861,1734263448680,-274.301383,0.00019995,2]
[345447863,1734263448689,-274.301383,0.00019995,2]
[345447865,1734263448699,-500.0,0.00019995,3]
[345447867,1734263448708,-151.0,0.00019995,2]
[345447869,1734263448717,-316.55,0.00019995,3]
[345447870,1734263448727,-500.0,0.00019995,3]
[345447872,1734263448737,-500.0,0.00019995,3]
[345447874,1734263448747,-500.0,0.00019995,3]
[345447876,1734263448757,-834.75,0.00019995,3]
[345447878,1734263448766,-500.0,0.00019995,3]
[345447880,1734263448775,-500.0,0.00019995,3]
[345447882,1734263448785,-562.57,0.00019995,3]
[345447884,1734263448794,-542.27,0.00019995,3]
[345447886,1734263448803,-500.0,0.00019995,3]
[345447888,1734263448812,-500.0,0.00019995,3]
[345447890,1734263448822,-500.0,0.00019995,3]
[345447892,1734263448831,-2757.68,0.00019995,30]
[345447894,1734263448844,-151.0,0.00019995,2]
[345447897,1734263448854,-500.0,0.00019995,3]
[345447898,1734263448864,-500.0,0.00019995,3]
[345447900,1734263448873,-500.0,0.00019995,3]
[345447902,1734263448883,-500.0,0.00019995,3]
[345447904,1734263448893,-500.0,0.00019995,3]
[345447906,1734263448902,-500.0,0.00019995,3]
[345447908,1734263448911,-500.0,0.00019995,3]
[345447910,1734263448920,-500.0,0.00019995,3]
[345447912,1734263448930,-500.0,0.00019995,3]
[345447914,1734263448939,-372.14687617,0.00019995,3]
[345447916,1734263448949,-500.0,0.00019995,3]
[345447918,1734263448958,-500.0,0.00019995,3]
[345447920,1734263448968,-500.0,0.00019996,3]
[345447922,1734263448978,-500.0,0.00019996,3]
[345447924,1734263448987,-192.33361359,0.00019996,3]
[345447926,1734263448996,-500.0,0.00019996,3]
[345447928,1734263449006,-500.0,0.00019996,3]
[345447930,1734263449016,-500.0,0.00019996,3]
[345447933,1734263449026,-500.0,0.00019996,3]
[345447935,1734263449035,-500.0,0.00019996,3]
[345447936,1734263449045,-500.0,0.00019996,3]
[345447939,1734263449055,-520.25,0.00019996,3]
[345447940,1734263449064,-500.0,0.00019996,3]
[345447942,1734263449073,-606.12,0.00019996,3]
[345447944,1734263449083,-500.0,0.00019996,3]
[345447946,1734263449092,-381.93,0.00019996,3]
[345447948,1734263449101,-500.0,0.00019996,3]
[345447950,1734263449111,-500.0,0.00019996,3]
[345447952,1734263449120,-592.04,0.00019996,3]
[345447954,1734263449130,-865.82,0.00019996,3]
[345447956,1734263449139,-500.0,0.00019996,3]
[345447958,1734263449148,-500.0,0.00019996,3]
[345447960,1734263449158,-378.95,0.00019996,3]
[345447962,1734263449168,-500.0,0.00019996,3]
[345447964,1734263449177,-430.06745355,0.00019996,3]
[345447966,1734263449188,-500.0,0.00019996,3]
[345447968,1734263449197,-398.26495511,0.00019996,3]
[345447970,1734263449206,-500.0,0.00019996,3]
[345447972,1734263449216,-766.298384,0.00019996,2]
[345447974,1734263449226,-2947.03,0.00019996,3]
[345447976,1734263449235,-500.0,0.00019996,3]
[345447978,1734263449244,-922.44,0.00019996,3]
[345447980,1734263449253,-500.0,0.00019996,3]
[345447982,1734263449264,-500.0,0.00019996,3]
[345447984,1734263449273,-705.82,0.00019996,3]
[345447986,1734263449283,-642.71,0.00019996,3]
[345447988,1734263449293,-500.0,0.00019996,3]
[345447991,1734263449302,-740.05,0.00019996,3]
[345447993,1734263449312,-359.444373,0.00019996,3]
[345447994,1734263449321,-950.1,0.00019996,3]
[345447997,1734263449331,-542.7,0.00019996,3]
[345447998,1734263449340,-500.0,0.00019996,3]
[345448000,1734263449350,-1085.19,0.00019996,3]
[345448002,1734263449359,-6945.34,0.00019996,3]
[345448004,1734263449368,-2043.78,0.00019996,3]
[345448006,1734263449377,-708.49,0.00019996,3]
[345448008,1734263449387,-500.0,0.00019996,3]
[345448010,1734263449395,-830.35,0.00019996,3]
[345448012,1734263449405,-1109.49,0.00019996,3]
[345448014,1734263449415,-581.1,0.00019996,3]
[345448016,1734263449424,-1222.92,0.00019996,3]
[345448019,1734263449437,-1671.42,0.00019996,3]
[345448021,1734263449446,-670.58,0.00019996,3]